bitfinex/quotes_SOLUSD_20240813
["timestamp","ask_amount","ask_price","bid_price","bid_amount"]
[1723588041204,12.42,147.15,147.05,16.1575]
[1723588041205,6.6341,147.17,147.14,6.796]
[1723588041427,19.0541,147.17,147.14,6.796]
[1723588041931,19.0541,147.17,147.15,6.7956]
[1723588042103,15.1907,147.18,147.08,12.42]
[1723588042305,15.1907,147.18,147.15,6.7956]
[1723588042306,12.42,147.17,147.15,6.7956]
[1723588042798,12.42,147.17,147.09,45.0]
[1723588043003,12.42,147.17,147.13,6.7963]
[1723588043816,12.42,147.17,147.14,6.7961]
[1723588044428,12.42,147.15,147.11,6.7975]
[1723588045039,12.42,147.13,147.05,16.1575]
[1723588045205,12.42,147.13,147.09,6.7985]
[1723588046024,12.42,147.13,147.1,6.798]
[1723588046208,12.42,147.13,147.05,16.1575]
[1723588046412,18.7097,147.15,147.12,6.7967]
[1723588047230,18.7097,147.15,147.1,6.7976]
[1723588048108,25.5057,147.15,147.1,6.7976]
[1723588048409,12.42,147.13,147.1,6.7976]
[1723588048609,12.42,147.13,147.09,6.7984]
[1723588048922,12.42,147.13,147.05,16.1575]
[1723588049127,12.42,147.13,147.06,45.0]
[1723588049650,12.42,147.13,147.11,6.7975]
[1723588050438,18.7097,147.15,147.07,1.35948712]
[1723588050729,18.7097,147.15,147.11,6.7976]
[1723588050932,18.7097,147.15,147.06,57.54549]
[1723588051313,18.7097,147.15,147.11,6.7975]
[1723588052129,18.7097,147.15,147.12,6.7971]
[1723588053221,12.42,147.15,147.12,6.7971]
[1723588055033,12.42,147.15,147.06,57.54549]
[1723588055234,12.42,147.15,147.11,6.7972]
[1723588057238,12.42,147.15,147.12,6.7971]
[1723588057609,12.42,147.15,147.07,20.12549]
[1723588057610,15.1907,147.18,147.13,6.7965]
[1723588057926,27.6107,147.18,147.08,12.42]
[1723588058127,27.6107,147.18,147.14,6.7961]
[1723588058506,34.4051,147.18,147.14,6.7961]
[1723588059341,27.6107,147.18,147.14,6.7961]
[1723588061645,0.12549,147.17,147.13,6.7966]
[1723588061834,12.42,147.16,147.13,6.7966]
[1723588062218,12.42,147.16,147.08,12.42]
[1723588062538,12.42,147.16,147.13,6.7963]
[1723588062715,12.42,147.16,147.14,6.7961]
[1723588063913,27.6107,147.18,147.15,6.7957]
[1723588064237,12.42,147.2,147.1,27.7131]
[1723588064435,12.42,147.2,147.11,65.12549]
[1723588064748,12.42,147.2,147.16,6.7951]
[1723588066143,0.12549,147.19,147.16,6.7951]
[1723588066444,12.42,147.18,147.13,6.7966]
[1723588066615,12.42,147.18,147.11,65.0]
[1723588066616,12.42,147.16,147.12,6.797]
[1723588067237,19.2155,147.16,147.11,6.7976]
[1723588068019,12.42,147.16,147.12,6.797]
[1723588069359,12.42,147.16,147.13,6.7966]
[1723588069741,12.42,147.18,147.16,6.795]
[1723588070048,0.12549,147.19,147.16,6.795]
[1723588070355,0.25098,147.19,147.16,6.795]
[1723588070541,0.25098,147.19,147.15,6.7957]
[1723588070954,0.12549,147.19,147.16,6.795]
[1723588071163,0.12549,147.19,147.15,6.7957]
[1723588071459,0.12549,147.19,147.16,6.7953]
[1723588071753,0.12549,147.19,147.15,6.7956]
[1723588071958,18.89529,147.21,147.16,1.35905267]
[1723588072138,18.89529,147.21,147.17,6.7946]
[1723588072139,18.7698,147.21,147.17,6.7946]
[1723588072826,25.5628,147.21,147.17,6.7946]
[1723588073329,18.7698,147.21,147.17,6.7946]
[1723588073528,18.7698,147.21,147.18,6.7943]
[1723588073730,12.42,147.21,147.12,0.12549]
[1723588073929,12.42,147.21,147.18,6.7943]
[1723588074751,12.42,147.21,147.17,6.7947]
[1723588075457,12.42,147.21,147.18,6.7942]
[1723588078453,12.42,147.21,147.12,45.50196]
[1723588078661,12.42,147.21,147.16,6.7953]
[1723588078662,19.213,147.21,147.16,6.7953]
[1723588080546,19.213,147.21,147.17,6.7948]
[1723588080747,12.42,147.21,147.17,6.7948]
[1723588080946,0.8298774,147.23,147.13,13.77880816]
[1723588080947,13.2498774,147.23,147.13,13.77880816]
[1723588081265,13.2498774,147.23,147.14,65.37647]
[1723588081453,13.2498774,147.23,147.14,65.25098]
[1723588081757,0.12549,147.22,147.14,65.0]
[1723588082665,19.2125,147.22,147.17,6.7945]
[1723588083033,19.2134,147.2,147.15,6.7956]
[1723588083233,12.42,147.18,147.15,6.7956]
[1723588083951,12.42,147.18,147.14,6.7961]
[1723588084243,19.2144,147.18,147.14,6.7961]
[1723588084541,12.42,147.18,147.14,6.7961]
[1723588084939,12.42,147.18,147.1,15.2931]
[1723588085151,12.42,147.2,147.11,21.35908802]
[1723588085360,12.42,147.2,147.17,6.7948]
[1723588086047,12.42,147.2,147.18,6.7943]
[1723588086262,16.076,147.21,147.18,6.7943]
[1723588086441,16.076,147.21,147.17,6.7947]
[1723588087572,16.076,147.21,147.18,6.7942]
[1723588088440,16.076,147.21,147.17,6.7948]
[1723588089859,19.2126,147.22,147.17,6.7948]
[1723588091276,19.2126,147.22,147.18,6.7943]
[1723588091578,19.2126,147.22,147.17,6.7947]
[1723588091946,6.793,147.21,147.16,6.7952]
[1723588092149,6.793,147.21,147.17,6.7948]
[1723588092465,19.2126,147.22,147.17,6.7948]
[1723588093176,0.8298774,147.23,147.19,6.7936]
[1723588094366,12.42,147.22,147.13,12.42]
[1723588094585,19.2128,147.22,147.17,6.7945]
[1723588097045,19.2128,147.22,147.18,6.7943]
[1723588097453,12.42,147.22,147.18,6.7943]
[1723588097673,0.9553674,147.23,147.13,12.42]
[1723588097674,13.2498774,147.23,147.13,12.42]
[1723588097867,13.2498774,147.23,147.14,65.37647]
[1723588098074,13.2498774,147.23,147.19,6.7934]
[1723588098283,13.2498774,147.23,147.2,6.7932]
[1723588101187,0.8298774,147.23,147.21,6.7929]
[1723588102084,0.8298774,147.23,147.2,6.7934]
[1723588104262,0.8298774,147.23,147.21,6.7926]
[1723588107991,0.8298774,147.23,147.22,6.7925]
[1723588113168,0.8298774,147.23,147.17,12.42]
[1723588113387,0.8298774,147.23,147.18,45.0]
[1723588114888,0.8298774,147.23,147.21,6.7929]
[1723588115992,0.8298774,147.23,147.22,8.15094256]
[1723588116167,0.8298774,147.23,147.22,6.7925]
[1723588116567,0.8298774,147.23,147.22,53.15053418]
[1723588116890,0.8298774,147.23,147.22,53.52700418]
[1723588117113,0.8298774,147.23,147.22,73.52700418]
[1723588117394,0.8298774,147.23,147.22,73.65249418]
[1723588118309,7.09966732,147.32,147.23,0.12549]
[1723588118598,6.5809,147.33,147.26,12.42]
[1723588118796,6.5809,147.33,147.27,45.0]
[1723588119490,6.5809,147.33,147.28,1.35762614]
[1723588119693,6.5809,147.33,147.3,6.7884]
[1723588121471,19.2069,147.35,147.3,6.7884]
[1723588122677,12.42,147.35,147.31,6.7883]
[1723588123586,19.2066,147.35,147.3,6.7888]
[1723588123774,12.42,147.33,147.29,6.7893]
[1723588123973,6.91269,147.34,147.26,15.1149]
[1723588123974,12.42,147.31,147.26,15.1149]
[1723588124198,12.42,147.31,147.28,6.7896]
[1723588124584,12.42,147.31,147.29,6.7891]
[1723588124894,12.42,147.33,147.3,6.7886]
[1723588126598,12.42,147.33,147.29,6.7891]
[1723588128008,12.42,147.33,147.3,6.7888]
[1723588129196,12.42,147.35,147.27,1.35779468]
[1723588129407,19.2066,147.35,147.31,6.7883]
[1723588129593,19.2066,147.35,147.3,6.7888]
[1723588130914,19.2075,147.33,147.26,15.1149]
[1723588131118,0.12549,147.32,147.28,6.7894]
[1723588131618,0.25098,147.34,147.3,6.7886]
[1723588131811,0.12549,147.34,147.3,6.7886]
[1723588133293,12.54549,147.35,147.31,6.7883]
[1723588133511,12.42,147.35,147.31,6.7883]
[1723588135305,12.42,147.35,147.3,6.7888]
[1723588135618,19.2066,147.35,147.3,6.7888]
[1723588135813,12.42,147.35,147.31,6.7883]
[1723588136712,19.2066,147.35,147.3,6.7887]
[1723588139306,6.7871,147.34,147.29,6.7892]
[1723588140920,6.788,147.32,147.28,6.7896]
[1723588141118,6.788,147.32,147.26,15.1149]
[1723588141119,12.54549,147.33,147.29,6.7892]
[1723588141324,0.12549,147.34,147.3,6.7887]
[1723588141509,0.25098,147.34,147.3,6.7887]
[1723588142001,0.12549,147.34,147.3,6.7887]
[1723588142503,19.2076,147.33,147.28,6.7897]
[1723588143225,6.7879,147.32,147.28,6.7897]
[1723588143435,12.42,147.31,147.26,15.1149]
[1723588143811,12.42,147.31,147.28,6.7895]
[1723588144131,12.42,147.33,147.26,15.1149]
[1723588144907,12.42,147.33,147.29,6.7892]
[1723588145103,12.42,147.33,147.3,6.7888]
[1723588145433,7.03758,147.35,147.3,6.7888]
[1723588145606,12.54549,147.34,147.3,6.7888]
[1723588146326,19.33249,147.34,147.29,6.7892]
[1723588146511,6.7875,147.33,147.29,6.7892]
[1723588146732,12.42,147.32,147.28,6.7897]
[1723588149342,20.0350774,147.38,147.33,6.7873]
[1723588149637,20.0350774,147.38,147.32,6.7875]
[1723588149638,6.7856,147.37,147.32,6.7875]
[1723588149806,20.0350774,147.38,147.33,6.7872]
[1723588150236,13.2498774,147.38,147.35,6.7865]
[1723588151447,0.8298774,147.38,147.3,0.12549]
[1723588151612,0.8298774,147.38,147.31,12.42]
[1723588151812,0.8298774,147.38,147.32,45.0]
[1723588152143,0.8298774,147.38,147.37,6.7856]
[1723588165765,13.3753674,147.38,147.34,6.7866]
[1723588165972,13.3753674,147.38,147.31,15.9741]
[1723588166694,13.3753674,147.38,147.35,6.7862]
[1723588167493,13.3753674,147.38,147.36,6.786]
[1723588170172,13.3753674,147.38,147.37,6.7856]
[1723588170497,13.6263474,147.38,147.37,6.7856]
[1723588170676,0.8298774,147.38,147.37,6.7856]
[1723588175008,0.8298774,147.38,147.36,6.786]
[1723588181481,0.8298774,147.38,147.35,6.7864]
[1723588181682,0.50196,147.37,147.31,15.9741]
[1723588181888,0.50196,147.37,147.34,6.7869]
[1723588182503,0.50196,147.37,147.33,6.7874]
[1723588182682,0.12549,147.35,147.33,6.7874]
[1723588184120,0.12549,147.33,147.3,6.7888]
[1723588184411,0.25098,147.33,147.31,6.7883]
[1723588185380,0.25098,147.33,147.25,6.4511]
[1723588185381,0.12549,147.31,147.28,6.7897]
[1723588185580,12.42,147.3,147.22,15.6691]
[1723588186008,12.42,147.3,147.28,6.7897]
[1723588186212,12.42,147.3,147.29,6.7893]
[1723588186382,0.25098,147.31,147.29,6.7893]
[1723588189221,12.42,147.32,147.3,6.7888]
[1723588189521,12.42,147.32,147.29,6.7891]
[1723588190421,0.25098,147.31,147.28,6.7896]
[1723588190805,0.25098,147.31,147.29,6.7893]
[1723588191496,12.42,147.32,147.29,6.7893]
[1723588191719,12.42,147.32,147.3,6.7885]
[1723588191720,0.12549,147.32,147.3,6.7885]
[1723588191931,0.37647,147.32,147.3,6.7885]
[1723588192440,0.37647,147.32,147.24,12.42]
[1723588192441,0.37647,147.32,147.28,6.7893]
[1723588192601,0.37647,147.32,147.29,6.7892]
[1723588193211,12.79647,147.32,147.22,15.6691]
[1723588193410,12.79647,147.32,147.23,20.0]
[1723588193610,12.79647,147.32,147.28,6.7896]
[1723588194826,19.58447,147.32,147.23,20.0]
[1723588195901,19.58447,147.32,147.27,6.7898]
[1723588198036,19.58447,147.32,147.28,6.7897]
[1723588198606,12.42,147.3,147.23,20.0]
[1723588198805,12.42,147.3,147.27,6.7901]
[1723588199813,0.12549,147.29,147.27,6.7901]
[1723588200706,0.12549,147.29,147.26,6.7906]
[1723588200907,0.12549,147.29,147.18,16.2863]
[1723588200908,0.12549,147.27,147.18,16.2863]
[1723588201219,0.12549,147.27,147.2,6.7933]
[1723588201220,12.42,147.23,147.2,6.7933]
[1723588201428,12.42,147.23,147.19,6.7937]
[1723588201730,0.37647,147.22,147.19,6.7937]
[1723588201939,0.50196,147.22,147.19,6.7937]
[1723588202138,12.42,147.21,147.18,6.7943]
[1723588202308,0.37647,147.22,147.14,16.2863]
[1723588202642,0.12549,147.21,147.15,1.35890561]
[1723588202935,0.37647,147.22,147.15,1.35890561]
[1723588203140,0.25098,147.22,147.15,1.35890561]
[1723588203437,0.37647,147.22,147.21,6.793]
[1723588203659,0.12549,147.24,147.16,12.42]
[1723588203836,0.25098,147.24,147.17,20.0]
[1723588204223,12.42,147.27,147.17,20.0]
[1723588204651,12.9351,147.28,147.23,6.7917]
[1723588204819,12.42,147.27,147.23,6.7917]
[1723588205149,12.42,147.27,147.24,6.7913]
[1723588205348,12.42,147.27,147.23,6.792]
[1723588205931,12.42,147.27,147.24,6.7915]
[1723588206145,0.12549,147.28,147.26,6.7907]
[1723588206532,19.2084,147.31,147.26,6.7907]
[1723588206740,12.42,147.29,147.26,6.7907]
[1723588206937,12.42,147.29,147.25,6.7911]
[1723588208929,0.12549,147.28,147.24,6.7915]
[1723588209253,12.42,147.25,147.17,36.0371]
[1723588209436,12.42,147.25,147.21,6.7929]
[1723588209437,0.12549,147.24,147.21,6.7929]
[1723588209644,0.25098,147.24,147.21,6.7929]
[1723588210257,0.25098,147.24,147.17,16.0371]
[1723588210856,0.25098,147.24,147.21,6.7929]
[1723588211064,0.25098,147.24,147.22,6.7924]
[1723588212768,0.25098,147.24,147.21,6.7929]
[1723588213137,0.12549,147.22,147.17,16.0371]
[1723588213335,12.42,147.23,147.17,16.0371]
[1723588213561,12.42,147.23,147.21,6.7929]
[1723588216032,0.25098,147.24,147.22,6.7925]
[1723588216533,15.5849,147.27,147.17,16.0371]
[1723588216534,7.1011254,147.28,147.26,6.7903]
[1723588216763,6.3769,147.29,147.26,6.7903]
[1723588217540,7.09947833,147.32,147.23,16.1831]
[1723588217541,12.42,147.32,147.23,16.1831]
[1723588217942,12.42,147.3,147.23,16.1831]
[1723588218268,12.42,147.3,147.27,6.7901]
[1723588218444,6.7879,147.32,147.23,16.1831]
[1723588218445,12.42,147.32,147.24,1.35813479]
[1723588218644,6.3769,147.33,147.24,1.35813479]
[1723588218645,6.3769,147.33,147.24,13.77813479]
[1723588218853,19.2071,147.34,147.24,32.42]
[1723588219147,19.208,147.32,147.24,20.0]
[1723588219463,12.42,147.32,147.28,6.7897]
[1723588219767,6.787,147.34,147.29,6.7892]
[1723588220067,0.12549,147.34,147.3,6.7887]
[1723588220365,28.611,147.35,147.31,6.7883]
[1723588220563,12.42,147.35,147.24,32.42]
[1723588220739,12.42,147.33,147.29,6.7889]
[1723588221536,12.42,147.33,147.28,6.7896]
[1723588221845,0.12549,147.32,147.28,6.7896]
[1723588222171,0.25098,147.32,147.28,6.7896]
[1723588222544,0.25098,147.32,147.29,6.7893]
[1723588222737,0.25098,147.32,147.3,6.7888]
[1723588222943,0.12549,147.33,147.31,6.7883]
[1723588223151,0.50196,147.34,147.31,6.7883]
[1723588223678,0.12549,147.34,147.31,6.7883]
[1723588228782,0.2566329,147.35,147.33,6.7874]
[1723588228941,0.2566329,147.35,147.34,6.787]
[1723588229146,0.2566329,147.35,147.3,6.7885]
[1723588229147,0.12549,147.34,147.3,6.7885]
[1723588229449,12.42,147.33,147.3,6.7885]
[1723588231550,0.2566329,147.35,147.3,1.35755312]
[1723588231767,0.2566329,147.35,147.34,6.787]
[1723588234584,0.2566329,147.35,147.34,69.62570544]
[1723588234761,0.2566329,147.35,147.34,89.62570544]
[1723588237773,0.2566329,147.35,147.34,89.75119544]
[1723588237981,0.2566329,147.35,147.34,90.00217544]
[1723588238366,0.8361323,147.42,147.4,6.7838]
[1723588241675,0.8361323,147.42,147.41,6.7838]
[1723588243811,0.8361323,147.42,147.4,6.7842]
[1723588243979,0.8361323,147.42,147.34,81.4817]
[1723588244180,0.8361323,147.42,147.35,20.0]
[1723588244405,6.7842,147.4,147.35,6.7863]
[1723588244712,0.25098,147.39,147.36,6.786]
[1723588245007,0.12549,147.39,147.36,6.786]
[1723588245173,0.12549,147.39,147.35,6.7865]
[1723588245587,0.25098,147.39,147.35,6.7865]
[1723588246403,0.25098,147.39,147.36,6.7859]
[1723588246576,0.12549,147.39,147.36,6.7859]
[1723588246776,0.12549,147.4,147.37,6.7855]
[1723588247077,0.25098,147.4,147.37,6.7855]
[1723588247598,44.8249323,147.42,147.3,16.4817]
[1723588247599,0.8361323,147.42,147.36,16.4817]
[1723588247801,0.8361323,147.42,147.37,20.0]
[1723588248000,0.8361323,147.42,147.39,6.7842]
[1723588249579,0.8361323,147.42,147.4,6.7841]
[1723588250110,0.8361323,147.42,147.4,6.784]
[1723588250407,0.8361323,147.42,147.37,6.7852]
[1723588250599,0.8361323,147.42,147.38,6.785]
[1723588250798,38.5794323,147.42,147.37,6.7856]
[1723588251280,38.5794323,147.42,147.39,6.7846]
[1723588251281,31.7961323,147.42,147.39,6.7846]
[1723588252083,0.8361323,147.42,147.4,6.7841]
[1723588252303,0.8361323,147.42,147.39,6.7846]
[1723588252994,0.12549,147.41,147.38,6.7851]
[1723588254799,0.12549,147.41,147.39,6.7845]
[1723588258113,0.12549,147.41,147.38,6.785]
[1723588259005,0.12549,147.41,147.37,6.7855]
[1723588259205,12.39,147.4,147.37,6.7855]
[1723588259411,12.39,147.38,147.35,6.7865]
[1723588260402,12.39,147.38,147.33,1.357359]
[1723588260593,0.12549,147.39,147.38,6.7851]
[1723588260786,29.8686323,147.42,147.39,6.7847]
[1723588260994,29.8686323,147.42,147.38,6.7851]
[1723588261528,0.8361323,147.42,147.38,6.7851]
[1723588261743,0.8361323,147.42,147.41,6.7838]
[1723588267922,13.2261323,147.42,147.38,22.5968]
[1723588268100,0.12549,147.41,147.38,6.7851]
[1723588268303,12.39,147.4,147.38,6.7851]
[1723588269099,12.39,147.4,147.39,6.7847]
[1723588269439,0.25098,147.41,147.39,6.7847]
[1723588269609,13.2261323,147.42,147.39,6.7847]
[1723588269930,0.8361323,147.42,147.41,6.7838]
[1723588270245,0.9616223,147.42,147.4,6.7841]
[1723588270410,0.9616223,147.42,147.35,15.2374]
[1723588270411,1.0871123,147.42,147.39,6.7846]
[1723588271521,1.0871123,147.42,147.4,6.7842]
[1723588272206,0.8361323,147.42,147.41,6.7838]
[1723588273541,0.8361323,147.42,147.41,26.7838]
[1723588273748,0.8361323,147.42,147.41,71.7838]
[1723588273906,0.8361323,147.42,147.41,73.14014529]
[1723588274107,0.8361323,147.42,147.41,71.7838]
[1723588274340,0.8361323,147.42,147.41,72.28576]
[1723588274537,53.8738,147.54,147.41,72.28576]
[1723588274538,6.7784,147.53,147.47,6.781]
[1723588274742,30.97,147.52,147.47,6.781]
[1723588275040,30.97,147.52,147.48,6.7805]
[1723588275739,0.50196,147.51,147.48,6.7805]
[1723588275928,0.12549,147.51,147.49,6.7799]
[1723588276240,60.6516,147.54,147.42,30.97]
[1723588276241,22.9038,147.54,147.44,22.3344]
[1723588276435,6.2788,147.54,147.5,6.7796]
[1723588277632,0.25098,147.53,147.5,6.7796]
[1723588278034,0.25098,147.53,147.48,6.7801]
[1723588278446,0.25098,147.53,147.47,6.7809]
[1723588278646,0.37647,147.52,147.47,6.7809]
[1723588278852,0.12549,147.51,147.47,6.7809]
[1723588279624,0.12549,147.49,147.44,15.9615]
[1723588279828,30.97,147.46,147.39,15.5957]
[1723588280052,0.25098,147.45,147.39,22.3803]
[1723588280266,0.25098,147.45,147.36,6.5681]
[1723588280267,0.12549,147.43,147.38,6.7851]
[1723588280439,45.25098,147.43,147.38,6.7851]
[1723588280626,0.12549,147.42,147.38,6.7851]
[1723588280831,0.25098,147.42,147.38,6.7851]
[1723588281138,0.25098,147.42,147.39,6.7845]
[1723588282457,0.12549,147.41,147.35,15.5957]
[1723588282657,0.37647,147.41,147.32,6.5681]
[1723588282946,0.12549,147.4,147.32,6.5681]
[1723588283262,0.12549,147.43,147.32,20.67516415]
[1723588283431,0.50196,147.43,147.39,6.7842]
[1723588283846,20.50196,147.43,147.39,6.7842]
[1723588285332,27.28506,147.43,147.38,6.7851]
[1723588287737,7.28506,147.43,147.38,6.7851]
[1723588288233,0.37647,147.43,147.33,32.32699638]
[1723588288449,0.25098,147.43,147.34,65.0]
[1723588288655,0.12549,147.43,147.4,6.7841]
[1723588289464,30.97,147.44,147.34,65.0]
[1723588289662,0.37647,147.43,147.34,65.0]
[1723588289827,0.37647,147.43,147.39,6.7843]
[1723588289828,0.25098,147.43,147.39,6.7843]
[1723588290251,0.25098,147.43,147.4,6.7842]
[1723588290452,0.25098,147.43,147.32,6.81908]
[1723588290453,0.25098,147.43,147.32,6.5681]
[1723588290630,0.12549,147.4,147.36,6.7856]
[1723588290839,0.12549,147.4,147.37,6.7855]
[1723588291071,37.87879,147.42,147.38,6.7851]
[1723588291072,0.12549,147.41,147.38,6.7851]
[1723588291361,30.97,147.44,147.33,20.0]
[1723588291561,37.7525,147.44,147.39,6.7847]
[1723588292553,30.97,147.44,147.4,6.7842]
[1723588292838,37.7524,147.44,147.39,6.7846]
[1723588293877,0.50196,147.43,147.39,6.7846]
[1723588294169,6.4985,147.47,147.34,32.4524408]
[1723588294348,13.2799,147.47,147.42,6.7833]
[1723588294739,30.97,147.5,147.36,30.97]
[1723588294937,30.97,147.5,147.37,65.37647]
[1723588295680,30.97,147.5,147.39,6.5214]
[1723588295982,6.7802,147.49,147.44,6.7823]
[1723588296760,0.12549,147.48,147.45,6.7819]
[1723588296949,0.25098,147.48,147.45,6.7819]
[1723588297651,37.7499,147.5,147.45,6.7819]
[1723588297954,21.8898,147.51,147.46,6.7813]
[1723588297955,12.8119,147.51,147.46,6.7813]
[1723588299373,0.37647,147.5,147.46,6.7813]
[1723588300368,0.37647,147.5,147.43,6.7828]
[1723588300369,30.97,147.48,147.43,6.7828]
[1723588300677,30.97,147.48,147.45,6.7819]
[1723588300867,0.12549,147.48,147.45,6.7819]
[1723588301182,0.25098,147.48,147.45,6.7819]
[1723588301389,31.22098,147.48,147.42,15.2258]
[1723588301581,0.12549,147.47,147.43,6.7828]
[1723588301899,0.12549,147.46,147.43,6.7828]
[1723588302181,0.12549,147.47,147.44,6.7823]
[1723588303571,0.12549,147.47,147.45,6.7817]
[1723588304474,0.25098,147.48,147.45,6.7817]
[1723588306759,82.7497,147.5,147.42,15.2258]
[1723588306760,75.97,147.5,147.42,15.2258]
[1723588306968,37.748,147.54,147.43,20.0]
[1723588307169,37.748,147.54,147.44,45.0]
[1723588308076,37.748,147.54,147.49,6.78]
[1723588308284,0.37647,147.53,147.49,6.78]
[1723588308488,0.25098,147.52,147.49,6.78]
[1723588309194,0.12549,147.52,147.49,6.78]
[1723588311266,0.12549,147.52,147.5,6.7795]
[1723588312801,44.41648826,147.56,147.46,1.35601783]
[1723588312995,0.8361323,147.57,147.47,15.8856]
[1723588313182,0.8361323,147.57,147.48,21.35577999]
[1723588313366,0.8361323,147.57,147.53,6.7781]
[1723588313973,6.7776,147.55,147.48,20.0]
[1723588314383,37.7469,147.56,147.48,20.0]
[1723588314777,0.12549,147.54,147.48,20.0]
[1723588315092,0.37647,147.54,147.51,6.7791]
[1723588315800,0.37647,147.54,147.44,16.1707]
[1723588315801,0.12549,147.51,147.44,16.1707]
[1723588315978,6.90499,147.51,147.46,6.7814]
[1723588316184,0.25098,147.5,147.46,6.7814]
[1723588316386,0.12549,147.49,147.46,6.7814]
[1723588317408,0.12549,147.49,147.47,6.7809]
[1723588317703,0.12549,147.49,147.44,16.1707]
[1723588317885,0.12549,147.49,147.45,6.7819]
[1723588317886,45.25098,147.49,147.45,6.7819]
[1723588318086,0.12549,147.47,147.45,6.7819]
[1723588319783,0.12549,147.47,147.46,6.7815]
[1723588321207,30.97,147.5,147.47,6.781]
[1723588321411,0.12549,147.51,147.4,16.1707]
[1723588321584,0.50196,147.51,147.41,65.0]
[1723588321785,0.50196,147.51,147.48,6.7801]
[1723588323306,6.1377,147.53,147.43,6.5561]
[1723588323589,30.97,147.54,147.51,6.7791]
[1723588324521,30.97,147.54,147.5,6.7795]
[1723588324909,30.97,147.56,147.52,6.7786]
[1723588325717,37.7469,147.56,147.52,6.7786]
[1723588325924,0.12549,147.55,147.52,6.7786]
[1723588326103,45.25098,147.55,147.52,6.7786]
[1723588326920,0.12549,147.54,147.52,6.7786]
[1723588327125,0.25098,147.54,147.52,6.7786]
[1723588327799,0.12549,147.54,147.53,6.7782]
[1723588328298,0.25098,147.54,147.53,6.7782]
[1723588330206,0.25098,147.55,147.53,6.7782]
[1723588331222,0.25098,147.55,147.54,6.7778]
[1723588331426,0.37647,147.55,147.54,6.7778]
[1723588332136,0.12549,147.55,147.54,6.7778]
[1723588332301,0.8361323,147.57,147.54,6.7778]
[1723588333127,7.6125323,147.57,147.53,6.7782]
[1723588333430,7.6125323,147.57,147.47,15.2288]
[1723588333617,0.25098,147.56,147.53,6.7781]
[1723588333825,0.37647,147.56,147.53,6.7781]
[1723588334422,0.25098,147.56,147.53,6.7781]
[1723588334620,0.9616223,147.57,147.48,38.77626689]
[1723588334621,0.8361323,147.57,147.48,38.77626689]
[1723588334961,0.8361323,147.57,147.49,65.0]
[1723588335115,0.8361323,147.57,147.56,6.7769]
[1723588335930,0.8361323,147.57,147.5,15.5555]
[1723588336110,0.8361323,147.57,147.54,6.7778]
[1723588336432,0.8361323,147.57,147.55,6.7772]
[1723588337205,0.8361323,147.57,147.56,6.7769]
[1723588337803,0.8361323,147.57,147.55,6.7772]
[1723588338225,0.8361323,147.57,147.54,6.7777]
[1723588338635,0.8361323,147.57,147.55,6.7772]
[1723588339450,0.8361323,147.57,147.56,6.7769]
[1723588340153,0.8361323,147.57,147.56,22.6421]
[1723588340755,0.8361323,147.57,147.56,87.6421]
[1723588341244,0.8361323,147.57,147.56,42.6421]
[1723588341944,0.8361323,147.57,147.56,43.99707281]
[1723588342143,0.8361323,147.57,147.56,88.99707281]
[1723588342746,0.8361323,147.57,147.56,87.6421]